Body,Body Name,Date,TransNo,Amount � (Excl VAT),Supplier name,Description,Expense Area,Expense Type,Expense Code
http://statistics.data.gov.uk/id/local-authority/00BF,London Borough of Sutton,17/06/2017,1240014,20, OYSTER BUS AUTOTOP,OYSTER TOP UP,Peoples Services Directorate,Travelling and Subsistence Allowances,A530
http://statistics.data.gov.uk/id/local-authority/00BF,London Borough of Sutton,12/06/2017,1240014,55.57, SAINSBURYS TO YOU 0052,SAINSBURYS GROCERIES,Peoples Services Directorate,Provisions - General,F150
http://statistics.data.gov.uk/id/local-authority/00BF,London Borough of Sutton,30/05/2017,1240014,35.79, SAINSBURYS TO YOU 0052,SAINSBURYS GROCERIES,Peoples Services Directorate,Provisions - General,F150
http://statistics.data.gov.uk/id/local-authority/00BF,London Borough of Sutton,19/06/2017,1240014,46.66, SAINSBURYS TO YOU 0038,SAINSBURYS GROCERIES,Peoples Services Directorate,Refreshments,F155
http://statistics.data.gov.uk/id/local-authority/00BF,London Borough of Sutton,12/06/2017,1240014,13.74, ASDA SUPERSTORE,ASDA GROCERIES,Peoples Services Directorate,Refreshments,F155
http://statistics.data.gov.uk/id/local-authority/00BF,London Borough of Sutton,06/06/2017,1240014,8.54, ASDA SUPERSTORE,ASDA GROCERIES,Peoples Services Directorate,Refreshments,F155
http://statistics.data.gov.uk/id/local-authority/00BF,London Borough of Sutton,05/06/2017,1240014,68.28, SAINSBURYS TO YOU 0038,SAINSBURYS GROCERIES,Peoples Services Directorate,Refreshments,F155
http://statistics.data.gov.uk/id/local-authority/00BF,London Borough of Sutton,01/06/2017,1240014,42.3, WWW.MILKANDMORE.CO.UK,MEETING REFRESHMENTS,Peoples Services Directorate,Refreshments,F155
http://statistics.data.gov.uk/id/local-authority/00BF,London Borough of Sutton,21/06/2017,1240014,20, OYSTER AUTOTOPUP,OYSTER TOP-UP,Peoples Services Directorate,Travelling and Subsistence Allowances,A530
http://statistics.data.gov.uk/id/local-authority/00BF,London Borough of Sutton,20/06/2017,1240014,20, OYSTER BUS AUTOSET,OYSTER TOP-UP,Peoples Services Directorate,Travelling and Subsistence Allowances,A530
http://statistics.data.gov.uk/id/local-authority/00BF,London Borough of Sutton,26/05/2017,1240014,20, OYSTER BUS AUTOTOP,OYSTER TOP UP,Peoples Services Directorate,Travelling and Subsistence Allowances,A530
http://statistics.data.gov.uk/id/local-authority/00BF,London Borough of Sutton,16/06/2017,1240014,20, OYSTER BUS AUTOTOP,OYSTER TOP UP,Peoples Services Directorate,Travelling and Subsistence Allowances,A530
http://statistics.data.gov.uk/id/local-authority/00BF,London Borough of Sutton,07/06/2017,1240014,20, OYSTER BUS AUTOTOP,OYSTER CARD TOP-UP,Peoples Services Directorate,Travelling and Subsistence Allowances,A530
http://statistics.data.gov.uk/id/local-authority/00BF,London Borough of Sutton,15/06/2017,1240014,48.14, TRAINLINE,TRAIN TRAVEL,Peoples Services Directorate,Travelling and Subsistence Allowances,A530
http://statistics.data.gov.uk/id/local-authority/00BF,London Borough of Sutton,14/06/2017,1240014,12.3, TICKETOFFICESALE,TRAVEL SO COURT,Peoples Services Directorate,Travelling and Subsistence Allowances,A530
http://statistics.data.gov.uk/id/local-authority/00BF,London Borough of Sutton,13/06/2017,1240014,3.71, GREGGS PLC,COURT SO SUBSISTENCE,Peoples Services Directorate,Personal Requisites,F106
http://statistics.data.gov.uk/id/local-authority/00BF,London Borough of Sutton,06/06/2017,1240014,9.39, WAITROSE 314,AM COURT ACTIVITY,Peoples Services Directorate,Personal Requisites,F106
http://statistics.data.gov.uk/id/local-authority/00BF,London Borough of Sutton,24/05/2017,1240014,3.21, CAFFE NERO SUTTON HIGH,ES ACTIVITY,Peoples Services Directorate,Personal Requisites,F106
http://statistics.data.gov.uk/id/local-authority/00BF,London Borough of Sutton,06/06/2017,1240014,66.67, IKEA ONLINE,WARDROBE,Peoples Services Directorate,Set Up Costs - Children Leaving Care,H336
http://statistics.data.gov.uk/id/local-authority/00BF,London Borough of Sutton,05/06/2017,1240014,638.33, IKEA ONLINE,SET UP FURNITURE,Peoples Services Directorate,Set Up Costs - Children Leaving Care,H336
http://statistics.data.gov.uk/id/local-authority/00BF,London Borough of Sutton,09/06/2017,1240014,147, TVLICENSING.CO.UK,TV LICENCE - LCT SET UP,Peoples Services Directorate,Set Up Costs - Children Leaving Care,H336
http://statistics.data.gov.uk/id/local-authority/00BF,London Borough of Sutton,10/06/2017,1240014,-7.46, WWW.ARGOS.CO.UK,FURNITURE REFUND,Peoples Services Directorate,Set Up Costs - Children Leaving Care,H336
http://statistics.data.gov.uk/id/local-authority/00BF,London Borough of Sutton,26/05/2017,1240014,507.43, WWW.ARGOS.CO.UK,FURNITURE,Peoples Services Directorate,Set Up Costs - Children Leaving Care,H336
http://statistics.data.gov.uk/id/local-authority/00BF,London Borough of Sutton,08/06/2017,1240014,69.99, WWW.HURAKEDUCATIONSERV,TRAINING FOR SOCIAL WORKERS,Peoples Services Directorate,Set Up Costs - Children Leaving Care,H336
http://statistics.data.gov.uk/id/local-authority/00BF,London Borough of Sutton,01/06/2017,1240014,85.5, WWW.INTERCHANGECOMMS.C,AUTISM SHOW,Peoples Services Directorate,Set Up Costs - Children Leaving Care,H336
http://statistics.data.gov.uk/id/local-authority/00BF,London Borough of Sutton,09/06/2017,1240014,15.5, OYSTER RENEW WEB,TRAVEL - OYSTERCARD,Peoples Services Directorate,Travelling and Subsistence Allowances,A530
http://statistics.data.gov.uk/id/local-authority/00BF,London Borough of Sutton,14/06/2017,1240014,15, OYSTER ISSUE WEB,NEW CARD ORDERED,Peoples Services Directorate,Travelling and Subsistence Allowances,A530
http://statistics.data.gov.uk/id/local-authority/00BF,London Borough of Sutton,14/06/2017,1240014,15, OYSTER ISSUE WEB,NEW CARD ORDERED,Peoples Services Directorate,Travelling and Subsistence Allowances,A530
http://statistics.data.gov.uk/id/local-authority/00BF,London Borough of Sutton,13/06/2017,1240014,-10, OYSTER RENEW WEB,OYSTER CARD RENEWAL,Peoples Services Directorate,Travelling and Subsistence Allowances,A530
http://statistics.data.gov.uk/id/local-authority/00BF,London Borough of Sutton,07/06/2017,1240014,20, OYSTER BUS AUTOSET,OYSTER TOP UP,Peoples Services Directorate,Travelling and Subsistence Allowances,A530
http://statistics.data.gov.uk/id/local-authority/00BF,London Borough of Sutton,16/06/2017,1240014,20.25, RB KEN&CHELSEA,BIRTH CERTIFICATE,Peoples Services Directorate,Personal Requisites,F106
http://statistics.data.gov.uk/id/local-authority/00BF,London Borough of Sutton,22/06/2017,1240014,22.3," AMAZON SVCS EUROPE,SAR",THE BEAR CARDS,Peoples Services Directorate,Personal Requisites,F106
http://statistics.data.gov.uk/id/local-authority/00BF,London Borough of Sutton,13/06/2017,1240014,38.5, ESSEX COUNTY COUNCIL,PASSPORT REQUEST FOR PH,Peoples Services Directorate,Personal Requisites,F106
http://statistics.data.gov.uk/id/local-authority/00BF,London Borough of Sutton,16/06/2017,1240014,485, PREMIER INN,ACCOMMODATION - J,Peoples Services Directorate,Payments Under the Child Care Act 1980,H210
http://statistics.data.gov.uk/id/local-authority/00BF,London Borough of Sutton,15/06/2017,1240014,516.67, TRAVELODGE,ACCOMMODATION - SP,Peoples Services Directorate,Payments Under the Child Care Act 1980,H210
http://statistics.data.gov.uk/id/local-authority/00BF,London Borough of Sutton,01/06/2017,1240014,606.67, PREMIER INN,ACCOMMODATION,Peoples Services Directorate,Payments Under the Child Care Act 1980,H210
http://statistics.data.gov.uk/id/local-authority/00BF,London Borough of Sutton,26/05/2017,1240014,315.88, TRAVELODGE,ACCOMMODATION,Peoples Services Directorate,Payments Under the Child Care Act 1980,H210
http://statistics.data.gov.uk/id/local-authority/00BF,London Borough of Sutton,22/06/2017,1240014,203.75, PREMIER INN,PREMIER INN,Peoples Services Directorate,Payments Under the Child Care Act 1980,H210
http://statistics.data.gov.uk/id/local-authority/00BF,London Borough of Sutton,09/06/2017,1240014,515, PREMIER INN,J EXTENSION,Peoples Services Directorate,Payments Under the Child Care Act 1980,H210
http://statistics.data.gov.uk/id/local-authority/00BF,London Borough of Sutton,08/06/2017,1240014,575, TRAVELODGE,TRAVEL LODGE EXTENSION FOR J FAMILY,Peoples Services Directorate,Payments Under the Child Care Act 1980,H210
http://statistics.data.gov.uk/id/local-authority/00BF,London Borough of Sutton,09/06/2017,1240014,19.02, TRAINLINE,TRAVEL TRAIN - CLIENT,Peoples Services Directorate,C.C.A Travel & Subsistance,H212
http://statistics.data.gov.uk/id/local-authority/00BF,London Borough of Sutton,21/06/2017,1240014,3.98, AMAZON.CO.UK,FAIRY PRINCESS WANDS PURCHASE,Peoples Services Directorate,C.C.A Daycare & Playschemes,H215
http://statistics.data.gov.uk/id/local-authority/00BF,London Borough of Sutton,06/06/2017,1240014,72.01, TRAINLINE,MITCHAM TO KEMSLEY,Peoples Services Directorate,Travelling and Subsistence Allowances,A530
http://statistics.data.gov.uk/id/local-authority/00BF,London Borough of Sutton,05/06/2017,1240014,63.44, TRAINLINE,LYDNEY TO SUTTON,Peoples Services Directorate,Travelling and Subsistence Allowances,A530
http://statistics.data.gov.uk/id/local-authority/00BF,London Borough of Sutton,05/06/2017,1240014,57.12, TRAINLINE,SUTTON TO GLOUCESTER,Peoples Services Directorate,Travelling and Subsistence Allowances,A530
http://statistics.data.gov.uk/id/local-authority/00BF,London Borough of Sutton,05/06/2017,1240014,24.73, TRAINLINE,SUTTON TO WICKFORD,Peoples Services Directorate,Travelling and Subsistence Allowances,A530
http://statistics.data.gov.uk/id/local-authority/00BF,London Borough of Sutton,05/06/2017,1240014,25.35, TRAINLINE,BARNES BRIDGE TO SITTINGBOURNE,Peoples Services Directorate,Travelling and Subsistence Allowances,A530
http://statistics.data.gov.uk/id/local-authority/00BF,London Borough of Sutton,02/06/2017,1240014,64.94, TRAINLINE,ST PANCRAS TO BROADSTAIRS,Peoples Services Directorate,Travelling and Subsistence Allowances,A530
http://statistics.data.gov.uk/id/local-authority/00BF,London Borough of Sutton,31/05/2017,1240014,17.9, TRAINLINE,CROYDON TO LIVERPOOL STREET,Peoples Services Directorate,Travelling and Subsistence Allowances,A530
http://statistics.data.gov.uk/id/local-authority/00BF,London Borough of Sutton,31/05/2017,1240014,22.29, TRAINLINE,LIVERPOOL STREET TO SOTHEND,Peoples Services Directorate,Travelling and Subsistence Allowances,A530
http://statistics.data.gov.uk/id/local-authority/00BF,London Borough of Sutton,24/06/2017,1240014,-20, OYSTER RENEW WEB,TRAVEL - OYSTERCARD,Peoples Services Directorate,Travelling and Subsistence Allowances,A530
http://statistics.data.gov.uk/id/local-authority/00BF,London Borough of Sutton,21/06/2017,1240014,20, OYSTER BUS AUTOTOP,TRAVEL - OYSTERCARD,Peoples Services Directorate,Travelling and Subsistence Allowances,A530
http://statistics.data.gov.uk/id/local-authority/00BF,London Borough of Sutton,20/06/2017,1240014,-48.1, TRAINLINE,TRAVEL - TRAIN,Peoples Services Directorate,Travelling and Subsistence Allowances,A530
http://statistics.data.gov.uk/id/local-authority/00BF,London Borough of Sutton,16/06/2017,1240014,37.74, TRAINLINE,TRAIN TRAVEL,Peoples Services Directorate,Travelling and Subsistence Allowances,A530
http://statistics.data.gov.uk/id/local-authority/00BF,London Borough of Sutton,16/06/2017,1240014,24.33, TRAINLINE,TRAIN TRAVEL,Peoples Services Directorate,Travelling and Subsistence Allowances,A530
http://statistics.data.gov.uk/id/local-authority/00BF,London Borough of Sutton,15/06/2017,1240014,13.01, TRAINLINE,TRAIN TRAVEL,Peoples Services Directorate,Travelling and Subsistence Allowances,A530
http://statistics.data.gov.uk/id/local-authority/00BF,London Borough of Sutton,13/06/2017,1240014,10, OYSTER RENEW WEB,TRAVEL OYSTER,Peoples Services Directorate,Travelling and Subsistence Allowances,A530
http://statistics.data.gov.uk/id/local-authority/00BF,London Borough of Sutton,13/06/2017,1240014,10, OYSTER RENEW WEB,TRAVEL - OYSTERCARD,Peoples Services Directorate,Travelling and Subsistence Allowances,A530
http://statistics.data.gov.uk/id/local-authority/00BF,London Borough of Sutton,12/06/2017,1240014,81.19, TRAINLINE,TRAVEL TRAIN,Peoples Services Directorate,Travelling and Subsistence Allowances,A530
http://statistics.data.gov.uk/id/local-authority/00BF,London Borough of Sutton,12/06/2017,1240014,47.02, TRAINLINE,TRAVEL TRAIN,Peoples Services Directorate,Travelling and Subsistence Allowances,A530
http://statistics.data.gov.uk/id/local-authority/00BF,London Borough of Sutton,09/06/2017,1240014,35.55, TRAINLINE,TRAVEL - TRAIN,Peoples Services Directorate,Travelling and Subsistence Allowances,A530
http://statistics.data.gov.uk/id/local-authority/00BF,London Borough of Sutton,09/06/2017,1240014,15, OYSTER ISSUE WEB,TRAVEL - OYSTERCARD,Peoples Services Directorate,Travelling and Subsistence Allowances,A530
http://statistics.data.gov.uk/id/local-authority/00BF,London Borough of Sutton,09/06/2017,1240014,15, OYSTER ISSUE WEB,TRAVEL - OYSTERCARD,Peoples Services Directorate,Travelling and Subsistence Allowances,A530
http://statistics.data.gov.uk/id/local-authority/00BF,London Borough of Sutton,09/06/2017,1240014,32.49, TRAINLINE,TRAVEL  - TRAIN,Peoples Services Directorate,Travelling and Subsistence Allowances,A530
http://statistics.data.gov.uk/id/local-authority/00BF,London Borough of Sutton,09/06/2017,1240014,57.43, TRAINLINE,TRAIN TRAVEL,Peoples Services Directorate,Travelling and Subsistence Allowances,A530
http://statistics.data.gov.uk/id/local-authority/00BF,London Borough of Sutton,30/05/2017,1240014,32.89, TRAINLINE,TRAIN TRAVEL,Peoples Services Directorate,Travelling and Subsistence Allowances,A530
http://statistics.data.gov.uk/id/local-authority/00BF,London Borough of Sutton,30/05/2017,1240014,50.9, TRAINLINE,TRAIN TRAVEL,Peoples Services Directorate,Travelling and Subsistence Allowances,A530
http://statistics.data.gov.uk/id/local-authority/00BF,London Borough of Sutton,30/05/2017,1240014,43.86, TRAINLINE,TRAIN TRAVEL,Peoples Services Directorate,Travelling and Subsistence Allowances,A530
http://statistics.data.gov.uk/id/local-authority/00BF,London Borough of Sutton,30/05/2017,1240014,-21.5, TRAINLINE,TRAIN TRAVEL - REFUND (MINUS 10 ADMIN),Peoples Services Directorate,Travelling and Subsistence Allowances,A530
http://statistics.data.gov.uk/id/local-authority/00BF,London Borough of Sutton,26/05/2017,1240014,93.53, TRAINLINE,TRAIN TRAVEL,Peoples Services Directorate,Travelling and Subsistence Allowances,A530
http://statistics.data.gov.uk/id/local-authority/00BF,London Borough of Sutton,27/05/2017,1240014,16.67, OYSTER BUS AUTOTOP,OYSTER CARD A530 0311 9999,Peoples Services Directorate,Travelling and Subsistence Allowances,A530
http://statistics.data.gov.uk/id/local-authority/00BF,London Borough of Sutton,26/05/2017,1240014,16.67, OYSTER BUS AUTOTOP,OYSTER AUTO TOPUP,Peoples Services Directorate,Travelling and Subsistence Allowances,A530
http://statistics.data.gov.uk/id/local-authority/00BF,London Borough of Sutton,23/06/2017,1240014,15.35, TRAINLINE,SUTTON TO TONBRIDGE,Peoples Services Directorate,Travelling and Subsistence Allowances,A530
http://statistics.data.gov.uk/id/local-authority/00BF,London Borough of Sutton,23/06/2017,1240014,112.71, TRAINLINE,BARNES BRIDGE TO PENRITH,Peoples Services Directorate,Travelling and Subsistence Allowances,A530
http://statistics.data.gov.uk/id/local-authority/00BF,London Borough of Sutton,23/06/2017,1240014,43.86, TRAINLINE,TAINLINE - BARNES BRIDGE TO MARGATE,Peoples Services Directorate,Travelling and Subsistence Allowances,A530
http://statistics.data.gov.uk/id/local-authority/00BF,London Borough of Sutton,23/06/2017,1240014,40.49, TRAINLINE,SUTTON TO WESTGATE ON SEA RETURN,Peoples Services Directorate,Travelling and Subsistence Allowances,A530
http://statistics.data.gov.uk/id/local-authority/00BF,London Borough of Sutton,23/06/2017,1240014,20, OYSTER BUS AUTOSET,OYSTER TOP UP,Peoples Services Directorate,Travelling and Subsistence Allowances,A530
http://statistics.data.gov.uk/id/local-authority/00BF,London Borough of Sutton,23/06/2017,1240014,-20.4, TRAINLINE,TRAINLINE REFUND,Peoples Services Directorate,Travelling and Subsistence Allowances,A530
http://statistics.data.gov.uk/id/local-authority/00BF,London Borough of Sutton,22/06/2017,1240014,31.77, TRAINLINE,BARNES BRIDGE TO SITTINGBOURNE,Peoples Services Directorate,Travelling and Subsistence Allowances,A530
http://statistics.data.gov.uk/id/local-authority/00BF,London Borough of Sutton,22/06/2017,1240014,18.31, TRAINLINE,TRAINLINE TONBRIDGE TO SUTTON,Peoples Services Directorate,Travelling and Subsistence Allowances,A530
http://statistics.data.gov.uk/id/local-authority/00BF,London Borough of Sutton,22/06/2017,1240014,64.77, TRAINLINE,2 RETURNS EUSTON TO MILTON KEYNES,Peoples Services Directorate,Travelling and Subsistence Allowances,A530
http://statistics.data.gov.uk/id/local-authority/00BF,London Borough of Sutton,21/06/2017,1240014,20, OYSTER AUTOTOPUP,NEW OYSTER CARD,Peoples Services Directorate,Travelling and Subsistence Allowances,A530
http://statistics.data.gov.uk/id/local-authority/00BF,London Borough of Sutton,21/06/2017,1240014,20, OYSTER AUTOTOPUP,NEW OYSTER CARD,Peoples Services Directorate,Travelling and Subsistence Allowances,A530
http://statistics.data.gov.uk/id/local-authority/00BF,London Borough of Sutton,21/06/2017,1240014,20, OYSTER BUS AUTOTOP,OYSTER TOP UP,Peoples Services Directorate,Travelling and Subsistence Allowances,A530
http://statistics.data.gov.uk/id/local-authority/00BF,London Borough of Sutton,20/06/2017,1240014,15, OYSTER ISSUE WEB,NEW OYSTER CARD,Peoples Services Directorate,Travelling and Subsistence Allowances,A530
http://statistics.data.gov.uk/id/local-authority/00BF,London Borough of Sutton,20/06/2017,1240014,15, OYSTER ISSUE WEB,NEW OYSTER CARD,Peoples Services Directorate,Travelling and Subsistence Allowances,A530
http://statistics.data.gov.uk/id/local-authority/00BF,London Borough of Sutton,20/06/2017,1240014,40.39, TRAINLINE,EAST CROYDON TO WHITSTABLE,Peoples Services Directorate,Travelling and Subsistence Allowances,A530
http://statistics.data.gov.uk/id/local-authority/00BF,London Borough of Sutton,20/06/2017,1240014,24.73, TRAINLINE,SUTTON TO BURNHAM-ON-CROUCH,Peoples Services Directorate,Travelling and Subsistence Allowances,A530
http://statistics.data.gov.uk/id/local-authority/00BF,London Borough of Sutton,19/06/2017,1240014,20.5, NUGENTS NEWS,OYSTER TOP UP FROM NEWSAGENTS,Peoples Services Directorate,Travelling and Subsistence Allowances,A530
http://statistics.data.gov.uk/id/local-authority/00BF,London Borough of Sutton,14/06/2017,1240014,70.89, TRAINLINE,EAST CROYDON TO SHREWSBURY,Peoples Services Directorate,Travelling and Subsistence Allowances,A530
http://statistics.data.gov.uk/id/local-authority/00BF,London Borough of Sutton,14/06/2017,1240014,15, OYSTER ISSUE WEB,NEW CARD ORDERED,Peoples Services Directorate,Travelling and Subsistence Allowances,A530
http://statistics.data.gov.uk/id/local-authority/00BF,London Borough of Sutton,14/06/2017,1240014,15, OYSTER ISSUE WEB,NEW CARD ORDERED,Peoples Services Directorate,Travelling and Subsistence Allowances,A530
http://statistics.data.gov.uk/id/local-authority/00BF,London Borough of Sutton,14/06/2017,1240014,112.71, TRAINLINE,WALLINGTON TO PENRITH,Peoples Services Directorate,Travelling and Subsistence Allowances,A530
http://statistics.data.gov.uk/id/local-authority/00BF,London Borough of Sutton,14/06/2017,1240014,66.71, TRAINLINE,TRAINLINE - BARNES BRIDGE TO SITTINGBOURNE,Peoples Services Directorate,Travelling and Subsistence Allowances,A530
http://statistics.data.gov.uk/id/local-authority/00BF,London Borough of Sutton,13/06/2017,1240014,10, OYSTER RENEW WEB,OYSTER RENEWAL,Peoples Services Directorate,Travelling and Subsistence Allowances,A530
http://statistics.data.gov.uk/id/local-authority/00BF,London Borough of Sutton,13/06/2017,1240014,71.09, TRAINLINE,EUSTON TO STOKE,Peoples Services Directorate,Travelling and Subsistence Allowances,A530
http://statistics.data.gov.uk/id/local-authority/00BF,London Borough of Sutton,13/06/2017,1240014,30.35, TRAINLINE,TRAINLINE EUSTON TO STOKE,Peoples Services Directorate,Travelling and Subsistence Allowances,A530
http://statistics.data.gov.uk/id/local-authority/00BF,London Borough of Sutton,08/06/2017,1240014,224.5, TRAINLINE,TRAINLINE BARNES TO PENRITH,Peoples Services Directorate,Travelling and Subsistence Allowances,A530
http://statistics.data.gov.uk/id/local-authority/00BF,London Borough of Sutton,08/06/2017,1240014,24.68, TRAINLINE,TRAINLINE TADWORTH TO WHITSTABLE,Peoples Services Directorate,Travelling and Subsistence Allowances,A530
http://statistics.data.gov.uk/id/local-authority/00BF,London Borough of Sutton,08/06/2017,1240014,-68.4, TRAINLINE,TRAINLINE REFUND,Peoples Services Directorate,Travelling and Subsistence Allowances,A530
http://statistics.data.gov.uk/id/local-authority/00BF,London Borough of Sutton,08/06/2017,1240014,-108.5, TRAINLINE,TRAINLINE REFUND,Peoples Services Directorate,Travelling and Subsistence Allowances,A530
http://statistics.data.gov.uk/id/local-authority/00BF,London Borough of Sutton,08/06/2017,1240014,-2.3, TRAINLINE,TRAINLINE REFUND,Peoples Services Directorate,Travelling and Subsistence Allowances,A530
http://statistics.data.gov.uk/id/local-authority/00BF,London Borough of Sutton,08/06/2017,1240014,-18.1, TRAINLINE,TRAIN REFUND,Peoples Services Directorate,Travelling and Subsistence Allowances,A530
http://statistics.data.gov.uk/id/local-authority/00BF,London Borough of Sutton,07/06/2017,1240014,20, OYSTER RENEW WEB,OYSTER WEB TOP-UP,Peoples Services Directorate,Travelling and Subsistence Allowances,A530
http://statistics.data.gov.uk/id/local-authority/00BF,London Borough of Sutton,07/06/2017,1240014,112.71, TRAINLINE,TRAINLINE BARNES TO PENRITY,Peoples Services Directorate,Travelling and Subsistence Allowances,A530
http://statistics.data.gov.uk/id/local-authority/00BF,London Borough of Sutton,07/06/2017,1240014,112.61, TRAINLINE,TRAINLINE BARNES TO CARLISLE,Peoples Services Directorate,Travelling and Subsistence Allowances,A530
http://statistics.data.gov.uk/id/local-authority/00BF,London Borough of Sutton,07/06/2017,1240014,45.49, TRAINLINE,TRAINLINE BARNES TO SANDWICH,Peoples Services Directorate,Travelling and Subsistence Allowances,A530
http://statistics.data.gov.uk/id/local-authority/00BF,London Borough of Sutton,07/06/2017,1240014,202.37, TRAINLINE,TRAINLINE MITCHAM JUNCTION TO SHREWSBURY,Peoples Services Directorate,Travelling and Subsistence Allowances,A530
http://statistics.data.gov.uk/id/local-authority/00BF,London Borough of Sutton,31/05/2017,1240014,21.17, TRAINLINE,TRAINLINE - NORBURY TO HARLOW TOWN,Peoples Services Directorate,Travelling and Subsistence Allowances,A530
http://statistics.data.gov.uk/id/local-authority/00BF,London Borough of Sutton,31/05/2017,1240014,28.41, TRAINLINE,TRAINLINE - NORBURY TO RAINHAM,Peoples Services Directorate,Travelling and Subsistence Allowances,A530
http://statistics.data.gov.uk/id/local-authority/00BF,London Borough of Sutton,31/05/2017,1240014,32.89, TRAINLINE,TRAINLINE CLAPHAM TO FAVERSHAM,Peoples Services Directorate,Travelling and Subsistence Allowances,A530
http://statistics.data.gov.uk/id/local-authority/00BF,London Borough of Sutton,30/05/2017,1240014,41.31, TRAINLINE,SUTTON TO WHITSTABLE RETURN,Peoples Services Directorate,Travelling and Subsistence Allowances,A530
http://statistics.data.gov.uk/id/local-authority/00BF,London Borough of Sutton,28/05/2017,1240014,20, OYSTER AUTOTOPUP,OYSTER TOP UP,Peoples Services Directorate,Travelling and Subsistence Allowances,A530
http://statistics.data.gov.uk/id/local-authority/00BF,London Borough of Sutton,02/06/2017,1240014,20, LBSUTTON,BIRTH CERTIFICATE,Peoples Services Directorate,Personal Requisites,F106
http://statistics.data.gov.uk/id/local-authority/00BF,London Borough of Sutton,19/06/2017,1240014,10.7, MOBICIP ENTERPRISE,FOREIGN EXCHANGE FEE,Peoples Services Directorate,Personal Requisites,F106
http://statistics.data.gov.uk/id/local-authority/00BF,London Borough of Sutton,15/06/2017,1240014,389.23, MOBICIP ENTERPRISE,SOFTWARE - INTERNET PROTECTION,Peoples Services Directorate,Personal Requisites,F106
http://statistics.data.gov.uk/id/local-authority/00BF,London Borough of Sutton,09/06/2017,1240014,10.66, TRAINLINE,TRAVEL TRAIN CLIENT,Peoples Services Directorate,C.C.A Travel & Subsistance,H212
http://statistics.data.gov.uk/id/local-authority/00BF,London Borough of Sutton,08/06/2017,1240014,80, WM MORRISONS,MORRISONS VOUCHERS,Peoples Services Directorate,C.C.A Food & Clothing,H213
http://statistics.data.gov.uk/id/local-authority/00BF,London Borough of Sutton,12/06/2017,1240014,58.33, PREMIER INN,ACCOMMODATION,Peoples Services Directorate,Asylum Seekers - Claimable Costs,H220
http://statistics.data.gov.uk/id/local-authority/00BF,London Borough of Sutton,26/05/2017,1240014,107.71, TRAINLINE,TRAIN TRAVEL - CONTACT,Peoples Services Directorate,Asylum Seekers - Claimable Costs,H220
http://statistics.data.gov.uk/id/local-authority/00BF,London Borough of Sutton,13/06/2017,1240014,10, OYSTER RENEW WEB,TRAVEL - OYSTERCARD,Peoples Services Directorate,Travelling and Subsistence Allowances,A530
http://statistics.data.gov.uk/id/local-authority/00BF,London Borough of Sutton,30/05/2017,1240014,27.08, TRAINLINE,TRAIN TRAVEL,Peoples Services Directorate,Travelling and Subsistence Allowances,A530
http://statistics.data.gov.uk/id/local-authority/00BF,London Borough of Sutton,30/05/2017,1240014,-15.8, TRAINLINE,TRAIN TRAVEL REFUND (MINUS 10 ADMIN CHARGE),Peoples Services Directorate,Travelling and Subsistence Allowances,A530
http://statistics.data.gov.uk/id/local-authority/00BF,London Borough of Sutton,25/06/2017,1240014,20, OYSTER AUTOTOPUP,OYSTER TOP UP,Peoples Services Directorate,Travelling and Subsistence Allowances,A530
http://statistics.data.gov.uk/id/local-authority/00BF,London Borough of Sutton,19/06/2017,1240014,41.62, TRAINLINE,VICTORIA TO DOVER PRIORY,Peoples Services Directorate,Travelling and Subsistence Allowances,A530
http://statistics.data.gov.uk/id/local-authority/00BF,London Borough of Sutton,30/05/2017,1240014,74.15, TRAINLINE,TRAINLINE - SUTTON TO ST LEONARD'S SQUARE,Peoples Services Directorate,Travelling and Subsistence Allowances,A530
http://statistics.data.gov.uk/id/local-authority/00BF,London Borough of Sutton,15/06/2017,1240014,12.2, LB CROYDON,BIRTH CERTIFICATE,Peoples Services Directorate,Personal Requisites,F106
http://statistics.data.gov.uk/id/local-authority/00BF,London Borough of Sutton,15/06/2017,1240014,12.49, WWW.ARGOS.CO.UK,FURNISHINGS,Peoples Services Directorate,Personal Requisites,F106
http://statistics.data.gov.uk/id/local-authority/00BF,London Borough of Sutton,31/05/2017,1240014,122.5, HM PASSPORT OFFICE,PASSPORT:       F106 0312 9999,Peoples Services Directorate,Personal Requisites,F106
http://statistics.data.gov.uk/id/local-authority/00BF,London Borough of Sutton,15/06/2017,1240014,98, HM PASSPORT OFFICE,PASSPORT FOR K AND P,Peoples Services Directorate,Personal Requisites,F106
http://statistics.data.gov.uk/id/local-authority/00BF,London Borough of Sutton,05/06/2017,1240014,49, HM PASSPORT OFFICE,PASSPORT FOR FS CP CHILD FOR COURT PROCEEDINGS,Peoples Services Directorate,Personal Requisites,F106
http://statistics.data.gov.uk/id/local-authority/00BF,London Borough of Sutton,31/05/2017,1240014,233.29, SP  HAMSEY TRADING LI,MATTRESS AND BED,Peoples Services Directorate,Payments Under the Child Care Act 1980,H210
http://statistics.data.gov.uk/id/local-authority/00BF,London Borough of Sutton,16/06/2017,1240014,11.14, WWW.LBHF.GOV.UK,BIRTH CERTIFICATE,Peoples Services Directorate,Payments Under the Child Care Act 1980,H210
http://statistics.data.gov.uk/id/local-authority/00BF,London Borough of Sutton,14/06/2017,1240014,174.12, WWW.ARGOS.CO.UK,FURNITURE,Peoples Services Directorate,Payments Under the Child Care Act 1980,H210
http://statistics.data.gov.uk/id/local-authority/00BF,London Borough of Sutton,12/06/2017,1240014,49, HM PASSPORT OFFICE,PL PASSPORT APPLICATION,Peoples Services Directorate,Payments Under the Child Care Act 1980,H210
http://statistics.data.gov.uk/id/local-authority/00BF,London Borough of Sutton,01/06/2017,1240014,51.87, TRAINLINE,TRAINLINE CATERHAM TO CHATHAM,Peoples Services Directorate,Payments Under the Child Care Act 1980,H210
http://statistics.data.gov.uk/id/local-authority/00BF,London Borough of Sutton,31/05/2017,1240014,536.75, TRAVELODGE,HOTEL FOR J S,Peoples Services Directorate,C.C.A Travel & Subsistance,H212
http://statistics.data.gov.uk/id/local-authority/00BF,London Borough of Sutton,30/05/2017,1240014,38.56, TRAINLINE,TRAINLINE - SUTTON TO ST LEONARD'S SQUARE,Peoples Services Directorate,C.C.A Travel & Subsistance,H212
http://statistics.data.gov.uk/id/local-authority/00BF,London Borough of Sutton,13/06/2017,1240014,360.78, WWW.ARGOS.CO.UK,FURNITURE - BUNK BED,Peoples Services Directorate,C.C.A Household Equip & Maint,H214
http://statistics.data.gov.uk/id/local-authority/00BF,London Borough of Sutton,19/06/2017,1240014,700, WM MORRISONS,FOOD VOUCHERS FOR MORRISONS,Peoples Services Directorate,Payments Under the Child Care Act 1980,H210
http://statistics.data.gov.uk/id/local-authority/00BF,London Borough of Sutton,01/06/2017,1240014,71.5, WWW.INTERCHANGECOMMS.C,AUTISM SHOW TICKETS,Peoples Services Directorate,Training - Course Fees,A520
http://statistics.data.gov.uk/id/local-authority/00BF,London Borough of Sutton,05/06/2017,1240014,12.2, LB CROYDON,BIRTH CERTIFICATE,Peoples Services Directorate,Personal Requisites,F106
http://statistics.data.gov.uk/id/local-authority/00BF,London Borough of Sutton,21/06/2017,1240014,30, LBSUTTON,BIRTH CERTIFICATE,Peoples Services Directorate,Personal Requisites,F106
http://statistics.data.gov.uk/id/local-authority/00BF,London Borough of Sutton,30/05/2017,1240014,25, THE HOUSE INC LTD,FOSTER CARER - F,Peoples Services Directorate,Personal Requisites,F106
http://statistics.data.gov.uk/id/local-authority/00BF,London Borough of Sutton,20/06/2017,1240014,30, LBSUTTON,BIRTH CERT PAYMENT,Peoples Services Directorate,Personal Requisites,F106
http://statistics.data.gov.uk/id/local-authority/00BF,London Borough of Sutton,20/06/2017,1240014,170, COUNTY COUNTY,ADOPTION APPLICATION TO CROYDON COURT,Peoples Services Directorate,Personal Requisites,F106
http://statistics.data.gov.uk/id/local-authority/00BF,London Borough of Sutton,12/06/2017,1240014,66.2, TRAINLINE,TRAVEL TRAIN,Peoples Services Directorate,Travelling and Subsistence Allowances,A530
http://statistics.data.gov.uk/id/local-authority/00BF,London Borough of Sutton,20/06/2017,1240014,38.48, TESCO STORES 5999,SUBSISTENCE PAYMENT FOR QA CLIENT,Peoples Services Directorate,C.C.A Household Equip & Maint,H214
http://statistics.data.gov.uk/id/local-authority/00BF,London Borough of Sutton,05/06/2017,1240014,43.23, WWW.PROMAIN.CO.UK,PLAYGROUND MARKING PAINT,Peoples Services Directorate,Materials - General,F100
http://statistics.data.gov.uk/id/local-authority/00BF,London Borough of Sutton,08/06/2017,1240014,7.43, TESCO STORE 3235,REFRESHMENTS FOR CONTACTS,Peoples Services Directorate,Refreshments,F155
http://statistics.data.gov.uk/id/local-authority/00BF,London Borough of Sutton,19/06/2017,1240014,44.48, TESCO STORES 5999,SUTTON FAMILY CENTRE CLIENT SUBSISTENCE PAYMENT,Peoples Services Directorate,C.C.A Household Equip & Maint,H214
http://statistics.data.gov.uk/id/local-authority/00BF,London Borough of Sutton,09/06/2017,1240014,145.04, TRAINLINE,TRAIN TRAVEL,Peoples Services Directorate,Travelling and Subsistence Allowances,A530
http://statistics.data.gov.uk/id/local-authority/00BF,London Borough of Sutton,18/06/2017,1240014,82.52, TRAINLINE,LONDON TO SHREWSBURY RETURN PEP,Peoples Services Directorate,Staff Travelling Expenses,E130
http://statistics.data.gov.uk/id/local-authority/00BF,London Borough of Sutton,12/06/2017,1240014,57.43, TRAINLINE,CARSHALTON TO STOKE RETURN PEP,Peoples Services Directorate,Staff Travelling Expenses,E130
http://statistics.data.gov.uk/id/local-authority/00BF,London Borough of Sutton,30/05/2017,1240014,55.69, TRAINLINE,CARSHALTON TO P'BOROUGH RTN TRAVEL PEP,Peoples Services Directorate,Staff Travelling Expenses,E130
http://statistics.data.gov.uk/id/local-authority/00BF,London Borough of Sutton,31/05/2017,1240014,33, HMCOURTS-SERVICE.G,SPLIT - K B L SUMMONS COSTS 52.38%,"Environment, Housing & Regeneration Directorate",Other Services,F340
http://statistics.data.gov.uk/id/local-authority/00BF,London Borough of Sutton,31/05/2017,1240014,30, HMCOURTS-SERVICE.G,SPLIT - BEDDINGTON B L SUMMONS COSTS 47.62%,"Environment, Housing & Regeneration Directorate",Other Services,F340
http://statistics.data.gov.uk/id/local-authority/00BF,London Borough of Sutton,01/06/2017,1240014,50, NEW SOUTHERN RAILW,OYSTER CARD TOP UP,"Environment, Housing & Regeneration Directorate",General Office Expenses,F235
http://statistics.data.gov.uk/id/local-authority/00BF,London Borough of Sutton,21/06/2017,1240014,-0.3, GOOGLE  ADWS8780462868,GOOGLE INVALID ACTIVITY,"Environment, Housing & Regeneration Directorate",Staff Advertising,A500
http://statistics.data.gov.uk/id/local-authority/00BF,London Borough of Sutton,04/06/2017,1240014,-0.39, GOOGLE  ADWS8780462868,INVALID ACTIVITY,"Environment, Housing & Regeneration Directorate",Staff Advertising,A500
http://statistics.data.gov.uk/id/local-authority/00BF,London Borough of Sutton,07/06/2017,1240014,103.32, AMAZON UK RETAIL AMAZO,EXTERNAL HARD DRIVE,Peoples Services Directorate,Purchase of IT Equipment,F380
http://statistics.data.gov.uk/id/local-authority/00BF,London Borough of Sutton,03/06/2017,1240014,17.7, TESCO STORE 3235,BEDDING PLANTS,Resources Directorate,General Office Expenses,F235
http://statistics.data.gov.uk/id/local-authority/00BF,London Borough of Sutton,05/06/2017,1240014,35, WWW.ICO.GOV.UK,DATA PROTECTION REGISTRATION,Resources Directorate,Subscriptions - General,F450
http://statistics.data.gov.uk/id/local-authority/00BF,London Borough of Sutton,11/06/2017,1240014,80.08, WWW.KITEPACKAGING.CO.U,PACKAGING FOR REGISTRAR MOVE,Resources Directorate,Miscellaneous Expenses,F620
http://statistics.data.gov.uk/id/local-authority/00BF,London Borough of Sutton,22/06/2017,1240014,63.33, AMAZON EU,FRAMES FOR LC MEDIA ROOM,"Environment, Housing & Regeneration Directorate",Furniture - Purchase,F080
http://statistics.data.gov.uk/id/local-authority/00BF,London Borough of Sutton,21/06/2017,1240014,"1,018.76", AMAZON UK MARKETPLACE,CHAIRS FOR LC MEDIA ROOM,"Environment, Housing & Regeneration Directorate",Furniture - Purchase,F080
http://statistics.data.gov.uk/id/local-authority/00BF,London Borough of Sutton,21/06/2017,1240014,43.97, AMAZON UK MARKETPLACE,STRIP LIGHTS FOR LC MEDIA ROOM,"Environment, Housing & Regeneration Directorate",Purchase of IT Equipment,F380
http://statistics.data.gov.uk/id/local-authority/00BF,London Borough of Sutton,19/06/2017,1240014,87.72, TRAINLINE,TRAIN TICKETS FOR JC  ATTENDANCE AT LGA CONFERENCE,Chief Executive's Directorate,Training - Travel and Subsistence,A521
http://statistics.data.gov.uk/id/local-authority/00BF,London Borough of Sutton,19/06/2017,1240014,36.97, TRAINLINE,TRAIN TICKETS FOR JC TO VISIT EAST SUSSEX COUNCIL ON THE 22ND JUNE 2017,Chief Executive's Directorate,Training - Travel and Subsistence,A521
http://statistics.data.gov.uk/id/local-authority/00BF,London Borough of Sutton,08/06/2017,1240014,279.1, TRAINLINE,"RTN TRAIN TICKETS TO MANCHESTER FOR CEX, STRATEGIC DIRECTOR, ASSISTANT DIRECTOR AND MEMBER TO VISIT NEW ISLINGTON SCHEME IN MANCHESTER",Chief Executive's Directorate,Travelling and Subsistence Allowances,A530
http://statistics.data.gov.uk/id/local-authority/00BF,London Borough of Sutton,19/06/2017,1240014,21.52, AMAZON UK MARKETPLACE,TEAM OYSTER TOPUP,Chief Executive's Directorate,Travelling and Subsistence Allowances,A530
http://statistics.data.gov.uk/id/local-authority/00BF,London Borough of Sutton,08/06/2017,1240014,27.49, AMAZON UK MARKETPLACE,BATTERIES,Chief Executive's Directorate,Travelling and Subsistence Allowances,A530
http://statistics.data.gov.uk/id/local-authority/00BF,London Borough of Sutton,11/06/2017,1240014,20, OYSTER AUTOTOPUP,PROJECTOR BAG,Chief Executive's Directorate,General Office Expenses,F235
http://statistics.data.gov.uk/id/local-authority/00BF,London Borough of Sutton,08/06/2017,1240014,3.37, AMAZON UK MARKETPLACE,DESK FANS,Chief Executive's Directorate,General Office Expenses,F235
http://statistics.data.gov.uk/id/local-authority/00BF,London Borough of Sutton,26/05/2017,1240014,20, OYSTER AUTOTOPUP,BATTERIES,Chief Executive's Directorate,General Office Expenses,F235
http://statistics.data.gov.uk/id/local-authority/00BF,London Borough of Sutton,12/06/2017,1240014,8.15, MAILCHIMP,WEB HOSTING,Chief Executive's Directorate,Fees - Computer Software,F384
http://statistics.data.gov.uk/id/local-authority/00BF,London Borough of Sutton,11/06/2017,1240014,296.42, MAILCHIMP    MONTHLY,WEB HOSTING,Chief Executive's Directorate,Fees - Computer Software,F384
http://statistics.data.gov.uk/id/local-authority/00BF,London Borough of Sutton,04/06/2017,1240014,6.66, AMAZON PRIME,AMAZON F001 4114 9999,Resources Directorate,Books,F006
http://statistics.data.gov.uk/id/local-authority/00BF,London Borough of Sutton,15/06/2017,1240014,10.64, AMAZON UK MARKETPLACE,PORT MAINS WALL CHARGER FROM AMAZON,Resources Directorate,Purchase of IT Equipment,F380
http://statistics.data.gov.uk/id/local-authority/00BF,London Borough of Sutton,14/06/2017,1240014,3.95, AMAZON UK MARKETPLACE,LEAD CABLE FOR IPHONE,Resources Directorate,Purchase of IT Equipment,F380
http://statistics.data.gov.uk/id/local-authority/00BF,London Borough of Sutton,14/06/2017,1240014,2.81, AMAZON UK MARKETPLACE,SAMSUNG GALAXY TAB DATA CABLE,Resources Directorate,Purchase of IT Equipment,F380
http://statistics.data.gov.uk/id/local-authority/00BF,London Borough of Sutton,05/06/2017,1240014,-50, ARENA EVENT SERVICES G,LOSS/BREAKAGE DEPOSIT RETURN,Resources Directorate,Special,D535
http://statistics.data.gov.uk/id/local-authority/00BF,London Borough of Sutton,09/06/2017,1240014,-289.8, MAJESTIC WINE,"REFUND FOR RETURNED WINE GLASSES, UNUSED WINE AND ICE BUCKETS",Resources Directorate,Materials - General,F100
http://statistics.data.gov.uk/id/local-authority/00BF,London Borough of Sutton,07/06/2017,1240014,16.45, AMAZON.CO.UK,"VISITORS BOOK FOR MADAM MAYOR, CLLR JC 2017-2018",Resources Directorate,Materials - General,F100
http://statistics.data.gov.uk/id/local-authority/00BF,London Borough of Sutton,19/06/2017,1240014,96.9, TRAINLINE,TRAIN TICKETS FOR CLLR. GARRATT TO ATTEND THE LGA CONFERENCE,Resources Directorate,Members Expenses - Travel and Subsistence,F401
http://statistics.data.gov.uk/id/local-authority/00BF,London Borough of Sutton,06/06/2017,1240014,43.43, AMAZON UK MARKETPLACE,AERIAL AND BRACKET FOR PS COMMS ROOM,"Environment, Housing & Regeneration Directorate",Purchase of IT Equipment,F380
http://statistics.data.gov.uk/id/local-authority/00BF,London Borough of Sutton,08/06/2017,1240014,788.33, WWW.EQUIPLOGISTICS.COM,TABLET FOR CCTV EDITING,"Environment, Housing & Regeneration Directorate",Purchase of IT Equipment,F380
http://statistics.data.gov.uk/id/local-authority/00BF,London Borough of Sutton,15/06/2017,1240014,16.67, OYSTER AUTOTOPUP,OYSTER CARD TOP UP - STRATEGIC DIRECTOR RESOURCES,Resources Directorate,Travelling and Subsistence Allowances,A530
http://statistics.data.gov.uk/id/local-authority/00BF,London Borough of Sutton,09/06/2017,1240014,16.67, OYSTER AUTOTOPUP,OYSTER CARD TOP UP - STRATEGIC DIRECTOR RESOURCES,Resources Directorate,Travelling and Subsistence Allowances,A530
http://statistics.data.gov.uk/id/local-authority/00BF,London Borough of Sutton,27/05/2017,1240014,16.67, OYSTER AUTOTOPUP,OYSTER CARD TOP UP - STRATEGIC DIRECTOR RESOURCES,Resources Directorate,Travelling and Subsistence Allowances,A530
http://statistics.data.gov.uk/id/local-authority/00BF,London Borough of Sutton,02/06/2017,1240014,129.99, WWW.ARGOS.CO.UK,CRISIS LOANS & GRANTS ARGOS,Resources Directorate,Grants,F473
http://statistics.data.gov.uk/id/local-authority/00BF,London Borough of Sutton,19/06/2017,1240014,308.32, ARGOS RETAIL GROUP,"PURCHASE OF CRISIS LOANS AND GRANTS ITEMS, FRIDGE/FREEZER AND ELECTRIC COOKER, L",Resources Directorate,Grants,F473
http://statistics.data.gov.uk/id/local-authority/00BF,London Borough of Sutton,08/06/2017,1240014,-5.79, ARGOS DIRECT,REFUND OF INSTALLATION COSTS RE J,Resources Directorate,Grants,F473
http://statistics.data.gov.uk/id/local-authority/00BF,London Borough of Sutton,31/05/2017,1240014,622.42, ARGOS RETAIL GROUP,"PURCHASE OF CRISIS LOANS AND GRANTS ITEMS, COOKER PLUS INSTALLATION, FRIDGE/FREEZER AND 3 X DIVAN BEDS, J",Resources Directorate,Grants,F473
http://statistics.data.gov.uk/id/local-authority/00BF,London Borough of Sutton,07/06/2017,1240014,355.77, ARGOS RETAIL GROUP,PURCHASE OF 2 X SINGLE DIVANS AND FRIDGE FREEZER FOR CRISIS LOAN,Resources Directorate,Grants,F473
http://statistics.data.gov.uk/id/local-authority/00BF,London Borough of Sutton,06/06/2017,1240014,272.44, WWW.ARGOS.CO.UK,PURCHASE OF 2 X SINGLE BEDS FOR CRISIS GRANT,Resources Directorate,Grants,F473
http://statistics.data.gov.uk/id/local-authority/00BF,London Borough of Sutton,13/06/2017,1240014,50, WWW.GOV.UK,PURCHASE OF 5 X PROBATE CERTIFICATES,Resources Directorate,General Office Expenses,F235
http://statistics.data.gov.uk/id/local-authority/00BF,London Borough of Sutton,23/06/2017,1240014,40, OYSTER AUTOTOPUP,OYSTER AUTOTOPUP,Resources Directorate,Travelling and Subsistence Allowances,A530
http://statistics.data.gov.uk/id/local-authority/00BF,London Borough of Sutton,07/06/2017,1240014,40, OYSTER BUS AUTOTOP,OYSTER AUTOTOPUP,Resources Directorate,Travelling and Subsistence Allowances,A530
http://statistics.data.gov.uk/id/local-authority/00BF,London Borough of Sutton,20/06/2017,1240014,99.89, AMAZON EU,PURCHASE OF 3 X DISABILITY RIGHTS HANDBOOK,Resources Directorate,Books of Reference/Statute,F222
http://statistics.data.gov.uk/id/local-authority/00BF,London Borough of Sutton,30/05/2017,1240014,766.67, THE PRINCIPAL MANCHEST,INSURANCE TEAM ACCOMMODATION FOR ATTENDANCE AT AWARD CONFERENCED IN MANCHESTER,Resources Directorate,Meals (Reimbursement on Receipt),A511
http://statistics.data.gov.uk/id/local-authority/00BF,London Borough of Sutton,08/06/2017,1240014,129, WWW.CII.CO.UK,CII STUDY TEXT WITH UPDATES,Resources Directorate,Training - Course Fees,A520
http://statistics.data.gov.uk/id/local-authority/00BF,London Borough of Sutton,07/06/2017,1240014,67.83, TRAINLINE,RETURN TRAIN TICKET FOR A ADEBAYO FROM LONDON TO MANCHESTER FOR ACES COUNCIL MEETING 18TH AUGUST,Resources Directorate,Conferences - Travel and Subsistence,A526
http://statistics.data.gov.uk/id/local-authority/00BF,London Borough of Sutton,02/06/2017,1240014,53.55, TRAINLINE,TRAIN TICKET FOR A ADEBAYO KINGS CROSS TO LEEDS RETURN FOR ACES CONFERENCE,Resources Directorate,Conferences - Travel and Subsistence,A526
http://statistics.data.gov.uk/id/local-authority/00BF,London Borough of Sutton,13/06/2017,1240014,64.99, PAYPAL  CPAG,WELFARE BENEFITS AND TAX CREDITS HANDBOOK 2017/2018,Resources Directorate,Books of Reference/Statute,F222
http://statistics.data.gov.uk/id/local-authority/00BF,London Borough of Sutton,26/05/2017,1240014,149.17, CHESSINGTON WORLD,DAY CARE - MERLIN ANNUAL PASS,Peoples Services Directorate,Day Care,G337
http://statistics.data.gov.uk/id/local-authority/00BF,London Borough of Sutton,12/06/2017,1240014,19.53, TRAINLINE,TRAVEL TRAIN,Peoples Services Directorate,Travelling and Subsistence Allowances,A530
http://statistics.data.gov.uk/id/local-authority/00BF,London Borough of Sutton,01/06/2017,1240014,9.74, TRAINLINE,TRAINLINE EAST CROYDON TO GATWICK,Peoples Services Directorate,Travelling and Subsistence Allowances,A530
http://statistics.data.gov.uk/id/local-authority/00BF,London Borough of Sutton,23/06/2017,1240014,9.33, TRAINLINE,ORPINGTON TO TONBRIDGE,Peoples Services Directorate,C.C.A Travel & Subsistance,H212
http://statistics.data.gov.uk/id/local-authority/00BF,London Borough of Sutton,23/06/2017,1240014,15.86, TRAINLINE,SUTTON TO TONBRIDGE,Peoples Services Directorate,C.C.A Travel & Subsistance,H212
http://statistics.data.gov.uk/id/local-authority/00BF,London Borough of Sutton,23/06/2017,1240014,9.33, TRAINLINE,TONBRIDGE TO ORPINGTON,Peoples Services Directorate,C.C.A Travel & Subsistance,H212
http://statistics.data.gov.uk/id/local-authority/00BF,London Borough of Sutton,23/06/2017,1240014,9.33, TRAINLINE,TONBRIDGE TO ORPINGTON,Peoples Services Directorate,C.C.A Travel & Subsistance,H212
http://statistics.data.gov.uk/id/local-authority/00BF,London Borough of Sutton,23/06/2017,1240014,9.33, TRAINLINE,ORPINGTON TO TONBRIDGE,Peoples Services Directorate,C.C.A Travel & Subsistance,H212
